[Event "Djerba Festival Blitz 2025"]
[Site "Djerba"]
[Date "2025.02.21"]
[Round "7.47"]
[White "McDonald, Margaret"]
[Black "Fengal, Zineddine"]
[Result "0-1"]
[ECO "C00"]
[WhiteElo "1404"]
[BlackElo "1439"]
[PlyCount "62"]
[EventDate "2025.02.15"]
[EventType "swiss"]
[EventCountry "TUN"]
[TimeControl "180+3"]

1. e4 {[%emt 0:03:06]} e6 {[%emt 0:03:06]} 2. Nf3 {[%emt 0:00:03]} d5 {[%emt 0:00:03]} 3. e5 {[%emt 0:00:03]} c5 {[%emt 0:00:03]} 4. b4 {[%emt 0:00:03]} cxb4 {[%emt 0:00:03]} 5. d4 {[%emt 0:00:03]} Nc6 {[%emt 0:00:03]} 6. Bd3 {[%emt 0:00:03]} Bd7 {[%emt 0:00:03]} 7. O-O {[%emt 0:00:03]} Qb6 {[%emt 0:00:03]} 8. c3 {[%emt 0:00:03]} bxc3 {[%emt 0:00:03]} 9. Nxc3 {[%emt 0:00:03]} Nxd4 {[%emt 0:00:03]} 10. Nxd4 {[%emt 0:00:03]} Qxd4 {[%emt 0:00:03]} 11. Bb2 {[%emt 0:00:03]} Qxe5 {[%emt 0:00:03]} 12. Re1 {[%emt 0:00:03]} Qc7 {[%emt 0:00:03]} 13. Nxd5 {[%emt 0:00:03]} Qd8 {[%emt 0:00:03]} 14. Rc1 {[%emt 0:00:03]} Bd6 {[%emt 0:00:03]} 15. a4 {[%emt 0:00:03]} Nf6 {[%emt 0:00:03]} 16. Nxf6+ {[%emt 0:00:03]} gxf6 17. Qf3 {[%emt 0:00:03]} Be7 {[%emt 0:00:06]} 18. Bb5 {[%emt 0:00:03]} Bxb5 {[%emt 0:00:03]} 19. axb5 b6 {[%emt 0:00:03]} 20. Rcd1 {[%emt 0:00:06]} Qb8 {[%emt 0:00:03]} 21. Bxf6 {[%emt 0:00:03]} Bxf6 {[%emt 0:00:03]} 22. Qxf6 {[%emt 0:00:03]} Rg8 {[%emt 0:00:03]} 23. f4 {[%emt 0:00:03]} Qb7 {[%emt 0:00:03]} 24. Rd2 {[%emt 0:00:03]} Rg6 {[%emt 0:00:03]} 25. Qh8+ {[%emt 0:00:03]} Ke7 {[%emt 0:00:03]} 26. Qxh7 {[%emt 0:00:03]} Rag8 {[%emt 0:00:03]} 27. Ree2 {[%emt 0:00:03]} Qc7 {[%emt 0:00:03]} 28. f5 {[%emt 0:00:03]} Qc5+ {[%emt 0:00:03]} 29. Kh1 {[%emt 0:00:03]} Qc1+ {[%emt 0:00:03]} 30. Rd1 {[%emt 0:00:03]} Qxd1+ {[%emt 0:00:03]} 31. Re1 Qxe1# {[%emt 0:00:03]} 0-1

[Event "Djerba Festival Blitz 2025"]
[Site "Djerba"]
[Date "2025.02.21"]
[Round "7.48"]
[White "Kammoun, Adam"]
[Black "Mekki, Walid"]
[Result "1-0"]
[ECO "D35"]
[WhiteElo "1571"]
[BlackElo "1578"]
[PlyCount "63"]
[EventDate "2025.02.15"]
[EventType "swiss"]
[EventCountry "TUN"]
[TimeControl "180+3"]

1. d4 {[%emt 0:00:02]} d5 {[%emt 0:00:04]} 2. c4 {[%emt 0:00:02]} e6 {[%emt 0:00:04]} 3. cxd5 {[%emt 0:00:02]} exd5 {[%emt 0:00:03]} 4. Nc3 {[%emt 0:00:02]} c6 {[%emt 0:00:05]} 5. Nf3 {[%emt 0:00:02]} Nf6 {[%emt 0:00:03]} 6. Bg5 {[%emt 0:00:02]} Be7 {[%emt 0:00:02]} 7. e3 {[%emt 0:00:01]} O-O {[%emt 0:00:04]} 8. Be2 {[%emt 0:00:02]} Re8 {[%emt 0:00:02]} 9. Qc2 {[%emt 0:00:02]} g6 {[%emt 0:00:03]} 10. Qb3 {[%emt 0:00:03]} Nbd7 {[%emt 0:00:09]} 11. O-O {[%emt 0:00:03]} c5 {[%emt 0:00:04]} 12. Bh6 {[%emt 0:00:08]} Ng4 {[%emt 0:00:03]} 13. Bf4 {[%emt 0:00:09]} Ndf6 {[%emt 0:00:12]} 14. h3 {[%emt 0:00:06]} cxd4 {[%emt 0:00:15]} 15. Nxd4 {[%emt 0:00:07]} Ne4 {[%emt 0:00:08]} 16. Nxe4 {[%emt 0:00:30]} dxe4 {[%emt 0:00:05]} 17. hxg4 {[%emt 0:00:02]} Bg5 {[%emt 0:00:13]} 18. Bxg5 {[%emt 0:00:14]} Qxg5 {[%emt 0:00:03]} 19. Rac1 {[%emt 0:00:05]} Be6 {[%emt 0:00:14]} 20. Nxe6 {[%emt 0:00:05]} Rxe6 {[%emt 0:00:03]} 21. Qxb7 {[%emt 0:00:09]} Rae8 {[%emt 0:00:19]} 22. Rc8 {[%emt 0:00:12]} Kg7 {[%emt 0:00:20]} 23. Rxe8 {[%emt 0:00:04]} Rxe8 {[%emt 0:00:02]} 24. Qxa7 {[%emt 0:00:07]} Re5 {[%emt 0:00:16]} 25. f4 {[%emt 0:00:05]} exf3 {[%emt 0:01:22]} 26. Rxf3 {[%emt 0:00:13]} Re7 {[%emt 0:00:00]} 27. Qd4+ {[%emt 0:00:10]} Re5 {[%emt 0:00:00]} 28. Rh3 {[%emt 0:00:15]} Qf6 {[%emt 0:00:00]} 29. Rf3 {[%emt 0:00:06]} Qh4 {[%emt 0:00:00]} 30. Qxe5+ {[%emt 0:00:05]} Kh6 {[%emt 0:00:00]} 31. g5+ {[%emt 0:00:04]} Kh5 {[%emt 0:00:00]} 32. Rh3# {[%emt 0:00:02]} 1-0

[Event "Djerba Festival Blitz 2025"]
[Site "Djerba"]
[Date "2025.02.21"]
[Round "7.49"]
[White "Doucet, Paul-Loup"]
[Black "Chavallard, Yanis"]
[Result "0-1"]
[ECO "B06"]
[WhiteElo "1503"]
[BlackElo "1605"]
[PlyCount "76"]
[EventDate "2025.02.15"]
[EventType "swiss"]
[EventCountry "TUN"]
[TimeControl "180+3"]

1. e4 {[%emt 0:00:03]} g6 {[%emt 0:00:03]} 2. d4 {[%emt 0:00:02]} d6 {[%emt 0:00:01]} 3. Nf3 {[%emt 0:00:03]} Bg7 {[%emt 0:00:02]} 4. Nc3 {[%emt 0:00:02]} Nd7 {[%emt 0:00:02]} 5. Bf4 {[%emt 0:00:06]} c6 {[%emt 0:00:05]} 6. Rb1 {[%emt 0:00:08]} Ngf6 {[%emt 0:00:03]} 7. Bd3 {[%emt 0:00:13]} O-O {[%emt 0:00:05]} 8. O-O {[%emt 0:00:04]} Nh5 {[%emt 0:00:06]} 9. Be3 {[%emt 0:00:14]} h6 {[%emt 0:00:21]} 10. Qd2 {[%emt 0:00:24]} Kh7 {[%emt 0:00:02]} 11. a3 {[%emt 0:00:08]} Ndf6 {[%emt 0:00:09]} 12. d5 {[%emt 0:00:20]} c5 {[%emt 0:00:08]} 13. b4 {[%emt 0:00:08]} Ng4 {[%emt 0:00:14]} 14. bxc5 {[%emt 0:00:09]} Nxe3 {[%emt 0:00:02]} 15. Qxe3 {[%emt 0:00:03]} Bxc3 {[%emt 0:00:03]} 16. cxd6 {[%emt 0:00:06]} Qxd6 {[%emt 0:00:06]} 17. e5 {[%emt 0:00:11]} Qxd5 {[%emt 0:00:14]} 18. Bxg6+ {[%emt 0:00:12]} fxg6 {[%emt 0:00:09]} 19. Qxc3 {[%emt 0:00:02]} Bf5 {[%emt 0:00:14]} 20. Rbd1 {[%emt 0:00:05]} Qf7 {[%emt 0:00:19]} 21. h3 {[%emt 0:00:15]} Nf4 {[%emt 0:00:06]} 22. Qc7 {[%emt 0:00:30]} Nxh3+ {[%emt 0:00:09]} 23. gxh3 {[%emt 0:00:01]} Bxh3 {[%emt 0:00:02]} 24. Nh2 {[%emt 0:00:46]} Qf4 {[%emt 0:00:08]} 25. Rd3 {[%emt 0:00:00]} Bxf1 {[%emt 0:00:07]} 26. Nxf1 {[%emt 0:00:00]} Rac8 {[%emt 0:00:19]} 27. Qxe7+ {[%emt 0:00:00]} Rf7 {[%emt 0:00:02]} 28. Qb4 {[%emt 0:00:01]} Qxf2+ {[%emt 0:00:06]} 29. Kh1 {[%emt 0:00:01]} Qxf1+ {[%emt 0:00:04]} 30. Kh2 {[%emt 0:00:01]} Rxc2+ {[%emt 0:00:05]} 31. Kg3 {[%emt 0:00:03]} Qxd3+ {[%emt 0:00:03]} 32. Kg4 {[%emt 0:00:03]} Rc4+ {[%emt 0:00:02]} 33. Qxc4 {[%emt 0:00:02]} Qxc4+ {[%emt 0:00:02]} 34. Kg3 {[%emt 0:00:01]} Qc3+ {[%emt 0:00:05]} 35. Kg2 {[%emt 0:00:02]} Qxe5 {[%emt 0:00:03]} 36. a4 {[%emt 0:00:01]} Qe2+ {[%emt 0:00:03]} 37. Kg3 {[%emt 0:00:04]} Rf3+ {[%emt 0:00:02]} 38. Kh4 {[%emt 0:00:02]} Qe4# {[%emt 0:00:02]} 0-1